bitfinex-derivatives/quotes_BTCF0:USTF0_20250805
["timestamp","ask_amount","ask_price","bid_price","bid_amount"]
[1754353789714,3.2973915,115000.0,114990.0,0.198727]
[1754353791315,3.7020721,115000.0,114990.0,0.198727]
[1754353792415,3.7020721,115000.0,114990.0,0.173927]
[1754353799116,3.7020721,115000.0,114990.0,0.198727]
[1754353800217,3.1076721,115000.0,114990.0,0.198727]
[1754353800418,3.2967515,115000.0,114990.0,0.278237]
[1754353800617,3.2967515,115000.0,114990.0,0.292357]
[1754353801923,3.2967515,115000.0,114990.0,0.278237]
[1754353802216,3.7014321,115000.0,114980.0,0.1304493]
[1754353802421,0.2901125,114980.0,114970.0,0.3595846]
[1754353802622,2.0539937,114980.0,114970.0,0.4210646]
[1754353803523,1.07069,114980.0,114970.0,0.4210646]
[1754353803724,1.8800512,114980.0,114970.0,0.4210646]
[1754353804019,2.0539939,114980.0,114970.0,0.4210646]
[1754353804717,2.0539937,114980.0,114970.0,0.4210646]
[1754353805223,2.1737317,114980.0,114970.0,0.4210646]
[1754353805517,1.9772792,114980.0,114970.0,0.8257452]
[1754353806210,2.1757316,114980.0,114970.0,0.8257452]
[1754353806417,1.3663704,114980.0,114970.0,0.8257452]
[1754353806619,2.1757316,114980.0,114970.0,0.8257452]
[1754353807319,1.169918,114980.0,114970.0,0.4210646]
[1754353807514,0.508178,114980.0,114970.0,0.8257452]
[1754353807709,0.508178,114980.0,114970.0,1.2304258]
[1754353807710,0.482538,114980.0,114970.0,1.2304258]
[1754353807914,0.482538,114980.0,114970.0,1.4043778]
[1754353808418,0.485538,114980.0,114970.0,1.41314446]
[1754353808621,0.485538,114980.0,114970.0,0.42983126]
[1754353808925,0.482538,114980.0,114970.0,0.83451186]
[1754353809323,0.480538,114980.0,114970.0,0.83451186]
[1754353810632,0.480538,114980.0,114970.0,1.23919246]
[1754353810924,0.480538,114980.0,114970.0,0.42983126]
[1754353811129,0.480538,114980.0,114970.0,1.42819186]
[1754353811425,0.480538,114980.0,114970.0,1.53765718]
[1754353816128,0.480538,114980.0,114970.0,1.42819186]
[1754353817232,0.480538,114980.0,114970.0,1.02351126]
[1754353817532,0.480538,114980.0,114970.0,1.42819186]
[1754353821434,0.480538,114980.0,114970.0,1.02351126]
[1754353821636,0.480538,114980.0,114970.0,1.42819186]
[1754353822133,0.480538,114980.0,114970.0,0.83451186]
[1754353822332,0.480538,114980.0,114970.0,1.42803186]
[1754353824329,0.480538,114980.0,114970.0,1.02335126]
[1754353824529,0.536538,114980.0,114970.0,1.02335126]
[1754353824733,0.9788786,114980.0,114970.0,1.42803186]
[1754353825331,0.9788786,114980.0,114970.0,1.02335126]
[1754353825533,0.9788786,114980.0,114970.0,0.83451186]
[1754353825736,1.0013886,114980.0,114970.0,1.42803186]
[1754353826637,1.0023886,114980.0,114970.0,1.42803186]
[1754353826942,1.0033886,114980.0,114970.0,1.42803186]
[1754353828336,0.576198,114980.0,114970.0,1.42803186]
[1754353828638,0.9808786,114980.0,114970.0,1.42803186]
[1754353828835,0.9808786,114980.0,114970.0,0.83451186]
[1754353829037,0.9808786,114980.0,114970.0,1.42799186]
[1754353830841,0.576198,114980.0,114970.0,1.42799186]
[1754353831743,0.9808786,114980.0,114970.0,1.53745718]
[1754353832443,1.0036186,114980.0,114970.0,1.53745718]
[1754353833043,0.9808786,114980.0,114970.0,1.53745718]
[1754353833441,0.576198,114980.0,114970.0,1.53745718]
[1754353833638,0.9808786,114980.0,114970.0,1.53745718]
[1754353834041,0.9808786,114980.0,114970.0,1.53741718]
[1754353834745,0.576198,114980.0,114970.0,1.53741718]
[1754353835040,0.9808786,114980.0,114970.0,1.53741718]
[1754353840050,0.576198,114980.0,114970.0,1.53741718]
[1754353840249,0.9808786,114980.0,114970.0,1.53741718]
[1754353842448,0.9808786,114980.0,114970.0,1.42795186]
[1754353843150,0.576198,114980.0,114970.0,1.42795186]
[1754353843350,0.9808786,114980.0,114970.0,1.42795186]
[1754353845553,0.576198,114980.0,114970.0,1.42795186]
[1754353845755,0.9808786,114980.0,114970.0,1.42795186]
[1754353846956,0.576198,114980.0,114970.0,1.42795186]
[1754353849259,0.576198,114980.0,114970.0,1.53741718]
[1754353849461,0.215398,114980.0,114970.0,1.53741718]
[1754353855562,0.131428,114980.0,114970.0,1.53741718]
[1754353857665,0.131428,114980.0,114970.0,1.42795186]
[1754353858870,0.121738,114980.0,114970.0,1.83263246]
[1754353859066,1e-07,114980.0,114970.0,2.59811306]
[1754353859269,0.2499,115000.0,114990.0,0.2926373]
[1754353859470,0.2499,115000.0,114990.0,1.6952385]
[1754353860069,0.2499,115000.0,114990.0,1.2905579]
[1754353860271,0.7739906,115000.0,114990.0,1.2905579]
[1754353860670,0.36931,115000.0,114990.0,1.2905579]
[1754353860968,0.7739906,115000.0,114990.0,1.2905579]
[1754353861368,0.36931,115000.0,114990.0,1.2905579]
[1754353861670,0.7512506,115000.0,114990.0,1.2905579]
[1754353861970,1.1120506,115000.0,114990.0,1.2905579]
[1754353862163,1.2317886,115000.0,114990.0,1.2905579]
[1754353862360,1.2327886,115000.0,114990.0,1.2905579]
[1754353862872,0.829108,115000.0,114990.0,1.2905579]
[1754353863068,1.2337886,115000.0,114990.0,1.2905579]
[1754353863367,0.468308,115000.0,114990.0,1.2905579]
[1754353863879,0.371638,115000.0,114990.0,1.2905579]
[1754353864276,0.732438,115000.0,114990.0,1.2905579]
[1754353864677,0.371638,115000.0,114990.0,1.2905579]
[1754353864972,0.732438,115000.0,114990.0,1.2905579]
[1754353865272,0.381108,115000.0,114990.0,1.2905579]
[1754353865473,0.415068,115000.0,114990.0,1.2905579]
[1754353866071,0.775868,115000.0,114990.0,1.2905579]
[1754353866269,0.790408,115000.0,114990.0,1.2905579]
[1754353866773,0.429608,115000.0,114990.0,1.2905579]
[1754353867170,0.381108,115000.0,114990.0,1.2905579]
[1754353872876,0.371638,115000.0,114990.0,1.6952385]
[1754353873069,0.371638,115000.0,114990.0,1.2905579]
[1754353873470,0.371638,115000.0,114990.0,1.6952385]
[1754353874781,0.371638,115000.0,114990.0,1.2905579]
[1754353875680,0.371638,115000.0,114990.0,1.6952385]
[1754353877177,0.371638,115000.0,114990.0,1.2905579]
[1754353881081,0.371638,115000.0,114990.0,0.2926373]
[1754353881276,0.371638,115000.0,114990.0,0.8856373]
[1754353881277,1.2570286,115000.0,114990.0,0.8856373]
[1754353881580,1.2570286,115000.0,114990.0,1.2903179]
[1754353882582,0.852348,115000.0,114990.0,1.2903179]
[1754353882787,1.2570286,115000.0,114990.0,1.2903179]
[1754353883373,1.2570286,115000.0,114990.0,0.6973179]
[1754353883684,0.852348,115000.0,114990.0,1.2902779]
[1754353883986,1.2570286,115000.0,114990.0,1.2902779]
[1754353886588,0.852348,115000.0,114990.0,1.2902779]
[1754353886782,1.2570286,115000.0,114990.0,1.2902779]
[1754353887988,1.2570286,115000.0,114990.0,0.8855973]
[1754353888183,1.2570286,115000.0,114990.0,1.2902779]
[1754353888483,1.2570286,115000.0,114990.0,0.6973179]
[1754353888684,1.2570286,115000.0,114990.0,1.2902779]
[1754353889291,1.2570286,115000.0,114990.0,0.6973179]
[1754353889485,0.491548,115000.0,114990.0,1.2902379]
[1754353889785,1.2570286,115000.0,114990.0,0.6973179]
[1754353890084,1.2570286,115000.0,114990.0,1.2901979]
[1754353892586,0.852348,115000.0,114990.0,1.2901979]
[1754353892788,1.2570286,115000.0,114990.0,1.2901979]
[1754353893394,0.852348,115000.0,114990.0,1.2901979]
[1754353894088,0.852348,115000.0,114990.0,1.39976283]
[1754353894488,1.2570286,115000.0,114990.0,0.99508223]
[1754353894687,0.852348,115000.0,114990.0,1.39976283]
[1754353894889,1.2570286,115000.0,114990.0,1.39976283]
[1754353895189,0.852348,115000.0,114990.0,1.39976283]
[1754353895489,1.2570286,115000.0,114990.0,1.39976283]
[1754353897994,2.428502,115000.0,114990.0,0.28349223]
[1754353898878,2.428502,115000.0,114990.0,0.1739273]
[1754353899991,2.427502,115000.0,114990.0,0.1749273]
[1754353901194,2.426502,115000.0,114990.0,0.1759273]
[1754353902693,2.926502,115000.0,114990.0,0.1759273]
[1754353903595,2.926502,115000.0,114990.0,0.1769273]
[1754353905296,2.926502,115000.0,114990.0,0.1799273]
[1754353911494,2.94814067,115000.0,114990.0,0.1799273]
[1754353914809,2.94814067,115000.0,114990.0,0.2029173]
[1754353916207,2.58734067,115000.0,114990.0,0.2029173]
[1754353916401,3.30894067,115000.0,114990.0,0.2029173]
[1754353917504,3.30894067,115000.0,114990.0,0.5846079]
[1754353917505,2.49953947,115000.0,114990.0,0.5846079]
[1754353917694,2.49953947,115000.0,114990.0,0.6999179]
[1754353917897,2.8825814,115000.0,114990.0,0.6999179]
[1754353918106,2.4779008,115000.0,114990.0,0.6999179]
[1754353918306,2.8825814,115000.0,114990.0,0.6999179]
[1754353918498,2.694422,115000.0,114990.0,0.6999179]
[1754353918705,2.8586814,115000.0,114990.0,0.6999179]
[1754353918902,2.4772808,115000.0,114990.0,0.6235679]
[1754353919107,3.286642,115000.0,114990.0,0.2029173]
[1754353919308,2.8819614,115000.0,114990.0,0.1799273]
[1754353919507,2.8819614,115000.0,114990.0,0.2029173]
[1754353919809,2.8819614,115000.0,114990.0,0.2188873]
[1754353920112,3.286642,115000.0,114990.0,0.1799273]
[1754353920508,3.286642,115000.0,114990.0,0.2029173]
[1754353921211,2.8819614,115000.0,114990.0,0.6999179]
[1754353921508,3.286642,115000.0,114990.0,0.6999179]
[1754353921704,3.286642,115000.0,114990.0,0.2952373]
[1754353922807,2.96287666,115000.0,114990.0,0.2952373]
[1754353923307,2.96287666,115000.0,114990.0,0.2813873]
[1754353923509,2.19612386,115000.0,114990.0,0.2813873]
[1754353923809,2.303328,115000.0,114990.0,0.78185316]
[1754353924311,2.303328,115000.0,114990.0,0.2962573]
[1754353924809,2.4772408,115000.0,114990.0,0.2962573]
[1754353925206,2.96283666,115000.0,114990.0,0.2497373]
[1754353925913,2.96283666,115000.0,114990.0,0.2820273]
[1754353927111,2.37003666,115000.0,114990.0,0.2820273]
[1754353927314,2.19612386,115000.0,114990.0,0.2820273]
[1754353927717,2.78892386,115000.0,114990.0,0.2820273]
[1754353928418,2.96283806,115000.0,114990.0,0.2820273]
[1754353929827,2.4772422,115000.0,114990.0,0.2820273]
[1754353930127,2.96283806,115000.0,114990.0,0.2820273]
[1754353932223,2.4772422,115000.0,114990.0,0.2820273]
[1754353932424,2.96283806,115000.0,114990.0,0.2820273]
[1754353933530,2.4772422,115000.0,114990.0,0.2820273]
[1754353933734,2.96283806,115000.0,114990.0,0.2820273]
[1754353933932,2.96283806,115000.0,114990.0,0.2968973]
[1754353933933,2.78892386,115000.0,114990.0,0.2968973]
[1754353934134,1.710528,115000.0,114990.0,0.2968973]
[1754353934331,1.710528,115000.0,114990.0,0.78249316]
[1754353934332,2.303288,115000.0,114990.0,0.78249316]
[1754353934729,1.687248,115000.0,114990.0,0.78249316]
[1754353934928,1.591238,115000.0,114990.0,1.26808902]
[1754353935233,1.591238,115000.0,114990.0,0.78249316]
[1754353935734,1.091238,115000.0,114990.0,1.37525316]
[1754353937127,0.369638,115000.0,114990.0,1.37525316]
[1754353937323,0.369638,115000.0,114990.0,1.45354616]
[1754353937627,0.3341795,115000.0,114990.0,2.03476902]
[1754353937935,1.00079,115020.0,115010.0,0.2919589]
[1754353938128,1.00079,115020.0,115010.0,0.77755476]
[1754353938129,1.04696,115020.0,115010.0,0.77755476]
[1754353938436,0.4542,115020.0,115010.0,0.77755476]
[1754353939334,0.4542,115020.0,115010.0,0.77855476]
[1754353939832,0.3608,115020.0,115010.0,1.37127476]
[1754353940330,0.3608,115030.0,115020.0,0.2919439]
[1754353940628,0.3608,115030.0,115020.0,0.77753976]
[1754353941225,0.3608,115030.0,115020.0,1.26313562]
[1754353941423,0.3608,115030.0,115020.0,1.33404995]
[1754353941628,0.3608,115030.0,115020.0,1.26313562]
[1754353941830,0.4542,115040.0,115030.0,0.2919288]
[1754353942031,0.47563055,115040.0,115030.0,1.37016466]
[1754353942232,0.97563055,115040.0,115030.0,1.37016466]
[1754353942731,0.5934,115040.0,115030.0,0.8845688]
[1754353942938,0.5934,115040.0,115030.0,1.37016466]
[1754353943238,0.713138,115040.0,115030.0,0.8845688]
[1754353943538,0.713138,115040.0,115030.0,1.37016466]
[1754353943837,0.713138,115040.0,115030.0,0.8845688]
[1754353944039,0.713138,115040.0,115030.0,1.37016466]
[1754353945036,0.713138,115040.0,115030.0,1.37867343]
[1754353945236,0.628878,115040.0,115030.0,1.37867343]
[1754353945533,0.690778,115040.0,115030.0,1.37867343]
[1754353945838,0.713138,115040.0,115030.0,1.37867343]
[1754353947032,0.676238,115040.0,115030.0,1.37867343]
[1754353947229,0.128878,115040.0,115030.0,1.37867343]
[1754353947433,0.119738,115040.0,115030.0,1.37867343]
[1754353948334,0.128878,115040.0,115030.0,1.37867343]
[1754353949434,0.119738,115040.0,115030.0,1.37867343]
[1754353950134,0.119738,115040.0,115030.0,1.37943343]
[1754353950337,0.0975841,115040.0,115030.0,1.37943343]
[1754353951440,0.11896776,115040.0,115030.0,1.37943343]
[1754353952743,0.05314746,115040.0,115030.0,1.37943343]
[1754353952943,6e-08,115040.0,115030.0,1.74023343]
[1754353953342,0.47875,115060.0,115050.0,0.2451386]
[1754353953542,0.3608,115060.0,115050.0,1.37151446]
[1754353953938,0.45474,115070.0,115060.0,0.1968235]
[1754353954143,0.47958,115070.0,115060.0,0.77829936]
[1754353954336,0.6533884,115070.0,115060.0,0.77829936]
[1754353954543,0.6533884,115070.0,115060.0,0.2927035]
[1754353954740,0.6533884,115070.0,115060.0,0.2786735]
[1754353954938,0.6533884,115070.0,115060.0,0.2458335]
[1754353955134,0.45474,115070.0,115060.0,0.76426936]
[1754353955335,0.47958,115070.0,115060.0,0.77829936]
[1754353955546,0.47958,115070.0,115060.0,0.2927035]
[1754353955945,1.099318,115070.0,115060.0,0.2927035]
[1754353956746,1.2731264,115070.0,115060.0,0.2927035]
[1754353957244,1.75872226,115070.0,115060.0,0.7671035]
[1754353957447,1.75872226,115070.0,115060.0,0.1738235]
[1754353958049,1.75972226,115070.0,115060.0,0.1738235]
[1754353958748,1.2741264,115070.0,115060.0,0.1738235]
[1754353958951,1.75972226,115070.0,115060.0,0.1738235]
[1754353960250,1.2741264,115070.0,115060.0,0.1738235]
[1754353960751,1.2741264,115070.0,115060.0,0.1892835]
[1754353960946,1.2741264,115070.0,115060.0,0.2362735]
[1754353961153,1.2741264,115070.0,115060.0,0.2927035]
[1754353964354,1.2741265,115070.0,115060.0,0.2927035]
[1754353965149,1.29544277,115070.0,115060.0,0.2786735]
[1754353965548,1.09679427,115070.0,115060.0,0.2786735]
[1754353965754,1.12163427,115070.0,115060.0,0.2927035]
[1754353966856,1.29544267,115070.0,115060.0,0.2927035]
[1754353967556,1.12163427,115070.0,115060.0,0.2927035]
[1754353968356,1.29544257,115070.0,115060.0,0.2927035]
[1754353970457,1.78103843,115070.0,115060.0,0.2786735]
[1754353970646,1.29544257,115070.0,115060.0,0.2786735]
[1754353970846,1.78103843,115070.0,115060.0,0.2786735]
[1754353971058,1.29544257,115070.0,115060.0,0.2786735]
[1754353971351,1.78103843,115070.0,115060.0,0.2786735]
[1754353971555,1.12163427,115070.0,115060.0,0.2458335]
[1754353971757,1.12163427,115070.0,115060.0,0.77829936]
[1754353972454,1.12163427,115070.0,115060.0,0.2927035]
[1754353972647,1.12163427,115070.0,115060.0,0.77829936]
[1754353972850,1.12163427,115070.0,115060.0,0.2927035]
[1754353973058,1.12163427,115070.0,115060.0,0.77829936]
[1754353973557,1.12163427,115070.0,115060.0,0.2927035]
[1754353973758,1.12163427,115070.0,115060.0,0.77829936]
[1754353974861,1.100318,115070.0,115060.0,0.77829936]
[1754353975662,1.100318,115070.0,115060.0,0.2927035]
[1754353975858,1.100318,115070.0,115060.0,0.77829936]
[1754353976065,1.100318,115070.0,115060.0,0.2927035]
[1754353976259,1.100318,115070.0,115060.0,0.77829936]
[1754353979263,1.100318,115070.0,115060.0,0.2927035]
[1754353979564,1.100318,115070.0,115060.0,0.77829936]
[1754353980963,1.2741267,115070.0,115060.0,0.2927035]
[1754353981162,1.75972256,115070.0,115060.0,0.7673835]
[1754353981357,1.2741267,115070.0,115060.0,0.7673835]
[1754353981561,2.35328256,115070.0,115060.0,0.1738235]
[1754353984462,0.2128238,115060.0,115050.0,0.3041981]
[1754353984667,1.14062966,115060.0,115050.0,0.3041981]
[1754353985374,1.26036766,115060.0,115050.0,0.3041981]
[1754353985774,1.76036766,115060.0,115050.0,0.3041981]
[1754353986461,1.76036766,115060.0,115050.0,0.4099681]
[1754353986665,1.2747718,115060.0,115050.0,0.4246281]
[1754353988268,1.2747718,115060.0,115050.0,0.4099681]
[1754353989176,1.2747718,115060.0,115050.0,0.4246281]
[1754353989371,1.76036766,115060.0,115050.0,0.4246281]
[1754353989872,1.2747718,115060.0,115050.0,0.4246281]
[1754353990279,1.694388,115060.0,115050.0,0.91022396]
[1754353990671,1.8682115,115060.0,115050.0,0.91022396]
[1754353990875,1.8682115,115060.0,115050.0,0.4246281]
[1754353991271,2.35380736,115060.0,115050.0,0.4099681]
[1754353991470,1.8682115,115060.0,115050.0,0.4099681]
[1754353993381,2.35380736,115060.0,115050.0,0.4099681]
[1754353993592,2.35380736,115060.0,115050.0,0.3041981]
[1754353995685,2.35380736,115060.0,115050.0,0.3289281]
[1754353997184,2.35380736,115060.0,115050.0,0.3625981]
[1754353997487,2.35380736,115060.0,115050.0,0.4246281]
[1754353997688,1.8682115,115060.0,115050.0,0.4246281]
[1754353998583,2.35380736,115060.0,115050.0,0.3289281]
[1754353998790,2.35380736,115060.0,115050.0,0.3041981]
[1754354000284,2.35490736,115060.0,115050.0,0.3041981]
[1754354000587,2.35490736,115060.0,115050.0,0.1738264]
[1754354001291,2.48528196,115060.0,115050.0,0.1738386]
[1754354001492,2.50651504,115060.0,115050.0,0.1738386]
[1754354003794,0.1738386,115050.0,115040.0,0.2607648]
[1754354003996,0.1738386,115050.0,115040.0,0.2173021]
[1754354003997,1.14064446,115050.0,115040.0,0.2173021]
[1754354004195,0.6550486,115050.0,115040.0,0.2173021]
[1754354004591,1.14064446,115050.0,115040.0,0.2420321]
[1754354004989,1.64064446,115050.0,115040.0,0.2912221]
[1754354005189,1.76038246,115050.0,115040.0,0.2912221]
[1754354005695,1.76038246,115050.0,115040.0,0.3230721]
[1754354006205,1.2747866,115050.0,115040.0,0.3377321]
[1754354006597,1.2747866,115050.0,115040.0,0.3387321]
[1754354008999,1.100948,115050.0,115040.0,0.3387321]
[1754354009200,1.654988,115050.0,115040.0,0.82432796]
[1754354009404,1.8681466,115050.0,115040.0,0.82432796]
[1754354009598,1.8681466,115050.0,115040.0,0.3387321]
[1754354010702,1.694308,115050.0,115040.0,0.3387321]
[1754354011003,1.694308,115050.0,115040.0,0.2904021]
[1754354011201,1.8681466,115050.0,115040.0,0.3387321]
[1754354011396,1.8431966,115050.0,115040.0,0.3387321]
[1754354011602,1.693448,115050.0,115040.0,0.3387321]
[1754354013004,1.332648,115050.0,115040.0,0.82432796]
[1754354013199,1.308358,115050.0,115040.0,0.82432796]
[1754354013402,1.669158,115050.0,115040.0,0.82432796]
[1754354013807,1.8670866,115050.0,115040.0,0.77599796]
[1754354014005,1.8670866,115050.0,115040.0,0.82518796]
[1754354014205,1.8670866,115050.0,115040.0,0.82292796]
[1754354014408,1.693248,115050.0,115040.0,0.3373321]
[1754354014606,1.8670866,115050.0,115040.0,0.3373321]
[1754354016107,1.8670869,115050.0,115040.0,0.3373321]
[1754354016706,1.5062869,115050.0,115040.0,0.3373321]
[1754354016909,1.8670869,115050.0,115040.0,0.3373321]
[1754354017810,1.8670869,115050.0,115040.0,0.82292796]
[1754354018909,1.693248,115050.0,115040.0,0.82292796]
[1754354020811,1.332448,115050.0,115040.0,0.82292796]
[1754354021007,1.693248,115050.0,115040.0,0.82292796]
[1754354021207,1.100088,115050.0,115040.0,0.82292796]
[1754354023314,0.739288,115050.0,115040.0,0.82292796]
[1754354023502,1.100088,115050.0,115040.0,0.82292796]
[1754354023702,1.349988,115050.0,115040.0,0.82292796]
[1754354024106,0.989188,115050.0,115040.0,0.82292796]
[1754354024420,1.349988,115050.0,115040.0,0.82292796]
[1754354025413,1.349988,115050.0,115040.0,0.3373321]
[1754354025709,1.349988,115050.0,115040.0,0.82292796]
[1754354027511,1.5238269,115050.0,115040.0,0.82292796]
[1754354028514,1.5238269,115050.0,115040.0,0.3373321]
[1754354028708,2.00942276,115050.0,115040.0,0.9301721]
[1754354028907,2.00942276,115050.0,115040.0,0.9156621]
[1754354029410,2.00942276,115050.0,115040.0,0.8809821]
[1754354029907,1.64862276,115050.0,115040.0,0.8111421]
[1754354030112,2.00942276,115050.0,115040.0,0.8111421]
[1754354030605,2.00942276,115050.0,115040.0,0.2183021]
[1754354031115,2.00942276,115050.0,115040.0,0.2409021]
[1754354031306,1.5238269,115050.0,115040.0,0.2409021]
[1754354031507,1.5238269,115050.0,115040.0,0.2572721]
[1754354031813,1.5238269,115050.0,115040.0,0.2881421]
[1754354032114,1.5238269,115050.0,115040.0,0.3228221]
[1754354032307,1.1630269,115050.0,115040.0,0.3373321]
[1754354032508,1.230438,115050.0,115040.0,0.90122096]
[1754354032812,1.277038,115050.0,115040.0,0.82292796]
[1754354033213,0.987648,115050.0,115040.0,0.90122096]
[1754354033414,1.348448,115050.0,115040.0,0.90122096]
[1754354033606,1.348448,115050.0,115040.0,0.82292796]
[1754354033607,1.5222869,115050.0,115040.0,0.82292796]
[1754354033931,1.348448,115050.0,115040.0,0.82292796]
[1754354034911,1.348448,115050.0,115040.0,1.41564796]
[1754354036120,1.5222867,115050.0,115040.0,1.41564796]
[1754354036416,1.5222867,115050.0,115040.0,1.49394096]
[1754354037813,1.348448,115050.0,115040.0,1.49394096]
[1754354038003,1.348448,115050.0,115040.0,1.41564796]
[1754354039115,1.348448,115050.0,115040.0,1.49394096]
[1754354039617,0.987648,115050.0,115040.0,1.49394096]
[1754354039918,1.348448,115050.0,115040.0,1.49394096]
[1754354040414,0.987648,115050.0,115040.0,1.49394096]
[1754354040716,1.1614867,115050.0,115040.0,1.49394096]
[1754354040908,0.987648,115050.0,115040.0,1.49394096]
[1754354042715,1.1614869,115050.0,115040.0,1.49394096]
[1754354043515,0.987648,115050.0,115040.0,1.49394096]
[1754354045515,0.987648,115050.0,115040.0,1.0083451]
[1754354045716,1.5222869,115050.0,115040.0,1.0082651]
[1754354049012,1.5136669,115050.0,115040.0,1.0079551]
[1754354050209,1.339828,115050.0,115040.0,1.0079551]
[1754354050522,1.315738,115050.0,115040.0,1.49355096]
[1754354051516,1.315738,115050.0,115040.0,1.41525796]
[1754354051920,1.339038,115050.0,115040.0,1.41525796]
[1754354052519,1.324088,115050.0,115040.0,1.39168796]
[1754354052714,1.348118,115050.0,115040.0,1.40527796]
[1754354053414,1.5219566,115050.0,115040.0,1.40527796]
[1754354053816,1.348118,115050.0,115040.0,1.40527796]
[1754354054622,1.5219569,115050.0,115040.0,1.40527796]
[1754354055322,1.5219569,115050.0,115040.0,0.9296621]
[1754354056217,1.324818,115050.0,115040.0,1.41525796]
[1754354056417,0.869638,115050.0,115040.0,1.77605796]
[1754354057014,0.869638,115050.0,115040.0,1.85435096]
[1754354057211,0.369638,115050.0,115040.0,1.3687551]
[1754354057417,0.369638,115050.0,115040.0,1.85435096]
[1754354059323,0.369638,115050.0,115040.0,1.49355096]
[1754354060223,0.369638,115050.0,115040.0,1.85435096]
[1754354061621,0.369638,115050.0,115040.0,1.77605796]
[1754354061820,0.2912277,115050.0,115040.0,2.62321794]
[1754354062025,0.1185092,115050.0,115040.0,2.62321794]
[1754354062220,1e-07,115050.0,115040.0,2.43550182]
[1754354062426,1e-07,115050.0,115040.0,2.77843358]
[1754354062826,1e-07,115050.0,115040.0,2.70030182]
[1754354064124,0.1197381,115050.0,115040.0,2.70030182]
[1754354065028,0.0548106,115050.0,115040.0,2.70030182]
[1754354065232,1e-07,115050.0,115040.0,2.70030182]
[1754354067223,1e-07,115050.0,115040.0,2.77835705]
[1754354067523,1e-07,115050.0,115040.0,2.18571705]
[1754354067730,0.0398301,115050.0,115040.0,1.70012119]
[1754354067930,0.0398301,115050.0,115040.0,2.29300119]
[1754354069031,1e-07,115050.0,115040.0,2.29300119]
[1754354069330,1e-07,115050.0,115040.0,2.22211919]
[1754354069829,1e-07,115050.0,115040.0,2.14407596]
[1754354072032,0.0042901,115050.0,115040.0,2.25364089]
[1754354072531,0.0042901,115050.0,115040.0,2.32195089]
[1754354074733,0.0042901,115050.0,115040.0,2.14810289]
[1754354082532,0.0042901,115050.0,115040.0,1.66250703]
[1754354082831,0.0042901,115050.0,115040.0,2.14810289]
[1754354084626,0.0042901,115050.0,115040.0,3.11715561]
[1754354087036,0.5935553,115080.0,115070.0,0.2753087]
[1754354087334,0.47982,115080.0,115070.0,1.85143442]
[1754354087531,0.38554,115080.0,115070.0,1.85143442]
[1754354087732,0.40813,115080.0,115070.0,1.85143442]
[1754354088133,0.38554,115080.0,115070.0,1.85143442]
[1754354088329,0.45923,115080.0,115070.0,1.85143442]
[1754354088632,0.45923,115080.0,115070.0,0.69012224]
[1754354088633,0.6065136,115080.0,115070.0,0.69012224]
[1754354088825,0.6065136,115080.0,115070.0,0.8816687]
[1754354088826,0.6556136,115080.0,115070.0,0.8816687]
[1754354089732,1.14040714,115080.0,115070.0,0.1738087]
[1754354089936,1.14040714,115080.0,115070.0,0.7663287]
[1754354090135,1.26014514,115080.0,115070.0,0.7663287]
[1754354091432,1.2823993,115080.0,115070.0,0.7663287]
[1754354091637,1.2823993,115080.0,115070.0,0.7980087]
[1754354093439,1.2823993,115080.0,115070.0,0.8202887]
[1754354093636,1.2823993,115080.0,115070.0,0.8295287]
[1754354093942,0.79760576,115080.0,115070.0,0.8295287]
[1754354094137,0.79760576,115080.0,115070.0,0.8588787]
[1754354094339,0.79760576,115080.0,115070.0,0.8816687]
[1754354095343,0.79760576,115080.0,115070.0,1.36646224]
[1754354098340,0.52953216,115080.0,115070.0,1.36646224]
[1754354098534,0.482538,115080.0,115070.0,1.36646224]
[1754354100144,0.482538,115080.0,115070.0,1.37527587]
[1754354100440,0.505128,115080.0,115070.0,1.37527587]
[1754354100641,0.121738,115080.0,115070.0,1.37527587]
[1754354100843,0.0975116,115080.0,115070.0,2.23812465]
[1754354101141,0.0166916,115080.0,115070.0,2.23812465]
[1754354101537,0.03809,115100.0,115090.0,0.206008]
[1754354101736,0.03809,115100.0,115090.0,1.32993154]
[1754354102339,0.05975,115100.0,115090.0,1.32993154]
[1754354102535,0.1032,115100.0,115090.0,1.32993154]
[1754354102842,0.03809,115100.0,115090.0,1.32993154]
[1754354103042,0.09344,115100.0,115090.0,1.32993154]
[1754354103340,0.09344,115100.0,115090.0,0.845218]
[1754354103341,0.2917729,115100.0,115090.0,0.845218]
[1754354103842,0.2927729,115100.0,115090.0,0.91369083]
[1754354104442,0.11901,115100.0,115090.0,0.91369083]
[1754354104638,0.238748,115100.0,115090.0,1.39848437]
[1754354104844,0.143288,115100.0,115090.0,1.39848437]
[1754354105137,0.159928,115100.0,115090.0,0.91369083]
[1754354105344,0.4136109,115100.0,115090.0,1.39848437]
[1754354105736,0.239848,115100.0,115090.0,1.39848437]
[1754354105936,0.4136109,115100.0,115090.0,1.39848437]
[1754354106748,0.120738,115100.0,115090.0,1.39848437]
[1754354106935,0.143288,115100.0,115090.0,1.39848437]
[1754354107543,0.159928,115100.0,115090.0,1.39848437]
[1754354107945,0.120738,115100.0,115090.0,1.41601391]
[1754354108148,0.142288,115100.0,115090.0,1.41601391]
[1754354108446,0.143288,115100.0,115090.0,1.41601391]
[1754354108842,0.225038,115100.0,115090.0,1.41601391]
[1754354109046,0.143288,115100.0,115090.0,1.41601391]
[1754354109251,0.159928,115100.0,115090.0,1.41601391]
[1754354109949,0.181588,115100.0,115090.0,1.41601391]
[1754354110147,0.316051,115100.0,115090.0,1.41613391]
[1754354110346,0.142288,115100.0,115090.0,1.41613391]
[1754354111044,0.142288,115100.0,115090.0,1.77693391]
[1754354111245,0.119738,115100.0,115090.0,1.77693391]
[1754354111546,0.056558,115100.0,115090.0,1.77693391]
[1754354115753,0.056558,115100.0,115090.0,2.04273391]
[1754354116454,0.057558,115100.0,115090.0,2.04173391]
[1754354117251,0.73866454,115100.0,115090.0,0.60346037]
[1754354117453,1.19602454,115100.0,115090.0,1.19610037]
[1754354117647,0.711231,115100.0,115090.0,1.19610037]
[1754354118353,1.19602454,115100.0,115090.0,1.19610037]
[1754354118746,0.711231,115100.0,115090.0,1.19610037]
[1754354119550,0.537468,115100.0,115090.0,1.19610037]
[1754354119750,0.537468,115100.0,115090.0,1.68089391]
[1754354121553,0.537468,115100.0,115090.0,1.41609391]
[1754354121749,0.418358,115100.0,115090.0,1.41609391]
[1754354121946,0.440908,115100.0,115090.0,1.41609391]
[1754354123847,0.442308,115100.0,115090.0,1.41609391]
[1754354124847,0.524058,115100.0,115090.0,1.41609391]
[1754354125257,0.538868,115100.0,115090.0,1.41609391]
[1754354125454,0.7126308,115100.0,115090.0,0.82345391]
[1754354125651,1.19742434,115100.0,115090.0,0.86144037]